[Event "EYCC Girls U14 2018"]
[Site "Riga"]
[Date "2018.08.26"]
[Round "6"]
[White "Mihailova, Alina"]
[Black "Kirchei, Viktoriia"]
[Result "1-0"]
[ECO "A40"]
[WhiteElo "1829"]
[BlackElo "1987"]
[Annotator "NA"]
[PlyCount "147"]
[EventDate "2018.08.20"]
[EventType "swiss"]
[EventCountry "LAT"]
[SourceTitle "playchess.com"]
[Source "ChessBase"]
[SourceQuality "1"]
[TimeControl "40/5400+30:1800+30"]

1. d4 {[%emt 0:00:00]} Nf6 {[%emt 0:00:00]} 2. c4 {[%emt 0:00:00]} e6 {[%emt 0:00:00]} 3. g3 {[%emt 0:00:00]} d5 {[%emt 0:05:59]} 4. Nf3 {[%emt 0:00:00]} Nbd7 {[%emt 0:02:42]} 5. Bg2 {[%emt 0:04:25]} c6 {[%emt 0:02:04]} 6. O-O {[%emt 0:01:27]} Bd6 {[%emt 0:03:23]} 7. Qc2 {[%emt 0:01:41]} O-O {[%emt 0:02:56]} 8. Rd1 {[%emt 0:01:08]} Ne4 {[%emt 0:03:03]} 9. Nc3 {[%emt 0:15:34]} f5 {[%emt 0:02:05]} 10. b3 {[%emt 0:01:29]} Ndf6 {[%emt 0:01:00]} 11. Ne5 {[%emt 0:07:15]} Qa5 {[%emt 0:03:54]} 12. Bd2 {[%emt 0:04:36]} Nxd2 {[%emt 0:00:52]} 13. Qxd2 {[%emt 0:02:25]} Qc7 {[%emt 0:18:47]} 14. f4 {[%emt 0:06:41]} Qe7 {[%emt 0:05:53]} 15. e3 {[%emt 0:09:32]} Nd7 {[%emt 0:08:47]} 16. Ne2 {[%emt 0:11:50]} Rf6 {[%emt 0:01:34]} 17. Nd3 {[%emt 0:11:09]} Rh6 {[%emt 0:01:07]} 18. c5 {[%emt 0:01:16]} Bc7 {[%emt 0:00:15]} 19. b4 {[%emt 0:00:13]} Nf6 {[%emt 0:03:45]} 20. Nf2 {[%emt 0:01:51]} Bd7 {[%emt 0:01:49]} 21. Nc3 {[%emt 0:00:52]} Qe8 {[%emt 0:04:20]} 22. Bf3 {[%emt 0:02:27]} Rg6 {[%emt 0:01:59]} 23. Qe2 {[%emt 0:03:01]} h5 {[%emt 0:00:45]} 24. Kg2 {[%emt 0:04:56]} Rh6 {[%emt 0:05:37]} 25. Nh3 {[%emt 0:02:47]} Ne4 {[%emt 0:02:59]} 26. Qc2 {[%emt 0:04:38]} h4 {[%emt 0:01:21]} 27. Nxe4 {[%emt 0:01:30]} fxe4 {[%emt 0:01:13]} 28. Bg4 {[%emt 0:00:09]} Qg6 {[%emt 0:04:14]} 29. Nf2 {[%emt 0:00:29]} Rf8 {[%emt 0:05:36]} 30. Qe2 {[%emt 0:00:33]} Qh7 {[%emt 0:02:01]} 31. Rh1 {[%emt 0:00:20]} Bd8 {[%emt 0:01:09]} 32. Rag1 {[%emt 0:00:53]} a5 {[%emt 0:01:59]} 33. a3 {[%emt 0:00:11]} axb4 {[%emt 0:00:25]} 34. axb4 {[%emt 0:00:01]} Bc7 {[%emt 0:01:25]} 35. Nh3 {[%emt 0:01:01]} Qg6 {[%emt 0:00:34]} 36. Nf2 {[%emt 0:00:22]} Qf7 {[%emt 0:00:44]} 37. Ra1 {[%emt 0:00:57]} Bb8 {[%emt 0:01:14]} 38. Rab1 {[%emt 0:00:35]} Qe7 {[%emt 0:00:14]} 39. Nh3 {[%emt 0:00:35]} Rg6 {[%emt 0:00:30]} 40. Bh5 {[%emt 0:00:00]} Rh6 {[%emt 0:00:00]} 41. Bg4 {[%emt 0:03:40]} Bc8 {[%emt 0:06:44]} 42. Ra1 {[%emt 0:11:22]} Bc7 {[%emt 0:00:37]} 43. Rhf1 {[%emt 0:00:54]} g6 {[%emt 0:07:07]} 44. Ra8 {[%emt 0:03:53]} Kg7 {[%emt 0:01:14]} 45. Ng5 {[%emt 0:01:25]} Bd7 {[%emt 0:03:52]} 46. Rxf8 {[%emt 0:02:56]} Kxf8 {[%emt 0:00:05]} 47. Qa2 {[%emt 0:01:53]} Kg7 {[%emt 0:08:57]} 48. Qa8 {[%emt 0:03:26]} b5 {[%emt 0:02:14]} 49. cxb6 {[%emt 0:01:35]} Bxb6 {[%emt 0:00:59]} 50. Qb7 {[%emt 0:00:16]} Bd8 {[%emt 0:00:20]} 51. Bxe6 {[%emt 0:01:31]} Be8 {[%emt 0:00:09]} 52. Bc8 {[%emt 0:02:32]} Qxb7 {[%emt 0:01:43]} 53. Bxb7 {[%emt 0:00:02]} Bxg5 {[%emt 0:00:29]} 54. fxg5 {[%emt 0:00:01]} h3+ {[%emt 0:00:05]} 55. Kg1 {[%emt 0:00:29]} Rh5 {[%emt 0:00:29]} 56. Rc1 {[%emt 0:00:05]} Rxg5 {[%emt 0:00:58]} 57. Bxc6 {[%emt 0:00:02]} Bxc6 {[%emt 0:01:02]} 58. Rxc6 {[%emt 0:00:02]} Rf5 {[%emt 0:00:08]} 59. b5 {[%emt 0:00:55]} Rf8 {[%emt 0:00:23]} 60. Rc5 {[%emt 0:02:50]} Ra8 {[%emt 0:00:35]} 61. g4 {[%emt 0:00:47]} Ra2 {[%emt 0:00:19]} 62. b6 {[%emt 0:00:50]} Rb2 {[%emt 0:00:41]} 63. Rxd5 {[%emt 0:00:29]} Rg2+ {[%emt 0:00:24]} 64. Kf1 {[%emt 0:00:14]} Rxh2 {[%emt 0:00:05]} 65. Rb5 {[%emt 0:00:08]} Rc2 {[%emt 0:01:32]} 66. Kg1 {[%emt 0:00:29]} Rc8 {[%emt 0:00:54]} 67. b7 {[%emt 0:00:05]} Rb8 {[%emt 0:00:11]} 68. Kh2 {[%emt 0:00:04]} Kf6 {[%emt 0:00:19]} 69. g5+ {[%emt 0:00:22]} Ke6 {[%emt 0:00:10]} 70. Kxh3 {[%emt 0:00:07]} Kd6 {[%emt 0:00:04]} 71. Kg4 {[%emt 0:00:43]} Kc6 {[%emt 0:00:05]} 72. Rb4 {[%emt 0:00:05]} Rxb7 {[%emt 0:00:26]} 73. Rxb7 {[%emt 0:00:03]} Kxb7 {[%emt 0:00:04]} 74. Kf4 {[%emt 0:00:04]} 1-0

[Event "EYCC Girls U14 2018"]
[Site "Riga"]
[Date "2018.08.26"]
[Round "6"]
[White "Hakobyan, Astghik"]
[Black "Levitan, Ronit"]
[Result "1/2-1/2"]
[ECO "C44"]
[WhiteElo "1820"]
[BlackElo "1933"]
[Annotator "NA"]
[PlyCount "128"]
[EventDate "2018.08.20"]
[EventType "swiss"]
[EventCountry "LAT"]
[SourceTitle "playchess.com"]
[Source "ChessBase"]
[SourceQuality "1"]
[TimeControl "40/5400+30:1800+30"]

1. e4 {[%emt 0:00:00]} e5 {[%emt 0:00:00]} 2. Nf3 {[%emt 0:00:00]} Nc6 {[%emt 0:00:00]} 3. d4 {[%emt 0:00:00]} exd4 {[%emt 0:00:00]} 4. Nxd4 {[%emt 0:00:00]} Nf6 {[%emt 0:00:00]} 5. Nc3 {[%emt 0:00:00]} Bb4 {[%emt 0:00:18]} 6. Nxc6 {[%emt 0:00:09]} bxc6 {[%emt 0:00:07]} 7. Bd3 {[%emt 0:00:03]} O-O {[%emt 0:00:18]} 8. O-O {[%emt 0:00:09]} d5 {[%emt 0:00:34]} 9. exd5 {[%emt 0:00:14]} cxd5 {[%emt 0:00:20]} 10. h3 {[%emt 0:00:11]} c6 {[%emt 0:01:20]} 11. Qf3 {[%emt 0:00:06]} Be6 {[%emt 0:02:05]} 12. Bf4 {[%emt 0:00:40]} Bd6 {[%emt 0:03:13]} 13. Ne2 {[%emt 0:00:08]} c5 {[%emt 0:01:12]} 14. Rad1 {[%emt 0:05:20]} Bxf4 {[%emt 0:15:47]} 15. Nxf4 {[%emt 0:00:28]} Qb6 {[%emt 0:01:39]} 16. b3 {[%emt 0:01:33]} c4 {[%emt 0:02:50]} 17. bxc4 {[%emt 0:18:15]} dxc4 {[%emt 0:00:13]} 18. Nxe6 {[%emt 0:00:59]} Qxe6 {[%emt 0:00:27]} 19. Rfe1 {[%emt 0:00:52]} Qa6 {[%emt 0:01:20]} 20. Bf1 {[%emt 0:00:41]} Rac8 {[%emt 0:03:47]} 21. Qc3 {[%emt 0:07:06]} Qb5 {[%emt 0:04:15]} 22. Re5 {[%emt 0:01:42]} Qb6 {[%emt 0:25:12]} 23. Rd4 {[%emt 0:04:50]} Rcd8 {[%emt 0:23:28]} 24. Rxc4 {[%emt 0:05:21]} h6 {[%emt 0:04:07]} 25. Rc6 {[%emt 0:04:05]} Qb1 {[%emt 0:01:50]} 26. Re1 {[%emt 0:05:06]} Qxa2 {[%emt 0:00:19]} 27. Bc4 {[%emt 0:10:08]} Qa4 {[%emt 0:00:18]} 28. Rxf6 gxf6 {[%emt 0:04:34]} 29. Re4 {[%emt 0:00:44]} Rd1+ {[%emt 0:00:48]} 30. Kh2 {[%emt 0:00:17]} Qa1 {[%emt 0:00:33]} 31. Rg4+ {[%emt 0:00:41]} Kh8 {[%emt 0:00:30]} 32. Qf3 {[%emt 0:01:33]} Rh1+ {[%emt 0:00:34]} 33. Kg3 {[%emt 0:00:07]} Qe5+ {[%emt 0:00:05]} 34. Qf4 {[%emt 0:01:01]} Qxf4+ {[%emt 0:00:53]} 35. Kxf4 {[%emt 0:00:21]} Rd1 {[%emt 0:00:41]} 36. Kf5 {[%emt 0:02:26]} Rd6 {[%emt 0:00:31]} 37. Re4 {[%emt 0:01:06]} a5 {[%emt 0:02:03]} 38. Re7 {[%emt 0:01:26]} Kg7 {[%emt 0:00:05]} 39. Ra7 {[%emt 0:01:18]} Rd2 {[%emt 0:00:08]} 40. f4 {[%emt 0:00:00]} Rxc2 {[%emt 0:00:00]} 41. Bd5 {[%emt 0:03:23]} Rd2 {[%emt 0:06:48]} 42. Rxa5 {[%emt 0:01:01]} Rd8 {[%emt 0:00:38]} 43. Bf3 {[%emt 0:00:29]} R8d4 {[%emt 0:01:57]} 44. Kg4 {[%emt 0:05:09]} Kg6 {[%emt 0:01:56]} 45. h4 {[%emt 0:02:12]} Rb2 {[%emt 0:01:48]} 46. h5+ {[%emt 0:00:51]} Kg7 {[%emt 0:00:07]} 47. Kg3 {[%emt 0:05:01]} Rbb4 {[%emt 0:00:37]} 48. Rf5 {[%emt 0:01:58]} Ra4 {[%emt 0:00:50]} 49. Kg4 {[%emt 0:01:08]} Ra3 {[%emt 0:01:02]} 50. Rb5 {[%emt 0:00:38]} Rda4 {[%emt 0:01:04]} 51. Rb7 {[%emt 0:03:14]} Ra5 {[%emt 0:01:30]} 52. Be4 {[%emt 0:00:25]} Ra2 {[%emt 0:00:58]} 53. g3 {[%emt 0:02:12]} Re2 {[%emt 0:01:01]} 54. Bg6 {[%emt 0:01:39]} f5+ {[%emt 0:12:21]} 55. Kf3 {[%emt 0:03:30]} Rc2 {[%emt 0:00:50]} 56. Rxf7+ {[%emt 0:00:13]} Kg8 {[%emt 0:00:11]} 57. Rxf5 {[%emt 0:00:44]} Rc3+ {[%emt 0:00:09]} 58. Kg4 {[%emt 0:00:31]} Raa3 {[%emt 0:00:16]} 59. Re5 {[%emt 0:01:26]} Rxg3+ {[%emt 0:01:12]} 60. Kf5 {[%emt 0:00:23]} Ra4 {[%emt 0:02:33]} 61. Re8+ {[%emt 0:01:09]} Kg7 {[%emt 0:00:13]} 62. Re7+ {[%emt 0:00:39]} Kg8 {[%emt 0:00:45]} 63. Re8+ {[%emt 0:03:06]} Kg7 {[%emt 0:00:06]} 64. Re7+ {[%emt 0:00:15]} Kg8 {[%emt 0:00:06] Ke4} 1/2-1/2

[Event "EYCC Girls U14 2018"]
[Site "Riga"]
[Date "2018.08.27"]
[Round "7"]
[White "Garifullina, Leya"]
[Black "Juhasz, Judit"]
[Result "1-0"]
[ECO "B31"]
[WhiteElo "2106"]
[BlackElo "1897"]
[Annotator "NA"]
[PlyCount "91"]
[EventDate "2018.08.20"]
[EventType "swiss"]
[EventCountry "LAT"]
[SourceTitle "playchess.com"]
[Source "ChessBase"]
[SourceQuality "1"]
[TimeControl "40/5400+30:1800+30"]

1. e4 {[%emt 0:00:00] Schulz,André} c5 {[%emt 0:00:00]} 2. Nf3 {[%emt 0:00:03]} Nc6 {[%emt 0:00:00]} 3. Bb5 {[%emt 0:01:04]} g6 {[%emt 0:00:00]} 4. Bxc6 {[%emt 0:00:51]} bxc6 {[%emt 0:00:00]} 5. O-O {[%emt 0:00:44]} Bg7 {[%emt 0:00:13]} 6. Re1 {[%emt 0:00:40]} Nf6 {[%emt 0:06:28]} 7. e5 {[%emt 0:01:25]} Nd5 {[%emt 0:00:09]} 8. c4 {[%emt 0:01:03]} Nc7 {[%emt 0:00:10]} 9. d4 {[%emt 0:00:33]} cxd4 {[%emt 0:00:21]} 10. Qxd4 {[%emt 0:01:12]} O-O {[%emt 0:02:07]} 11. Qh4 {[%emt 0:01:59]} Ne6 {[%emt 0:05:22]} 12. Nc3 {[%emt 0:03:36]} f6 {[%emt 0:02:27]} 13. Ne4 {[%emt 0:12:18] [#] B31: Sicilian: 2...Nc6 3 Bb5 g6} Qc7 $146 {[%emt 0:23:46]} ({Predecessor:} 13... fxe5 14. Nfg5 Nxg5 15. Bxg5 Qb6 16. c5 Qxb2 17. Rad1 d5 18. cxd6 exd6 19. Rxd6 Bf5 20. Nf6+ Bxf6 21. Bxf6 Rab8 22. Qc4+ Rf7 23. Red1 Qb1 24. h3 {1-0 (24) Van Wely,L (2667)-Hou,Y (2673) Wijk aan Zee 2015 CBM 165 [Schulz,André]}) 14. exf6 {[%emt 0:13:47]} exf6 {[%emt 0:03:21]} 15. Bd2 {[%emt 0:03:40]} Rb8 {[%emt 0:07:12]} 16. Bc3 {[%emt 0:04:29]} Qf4 {[%emt 0:08:49]} 17. Qxf4 {[%emt 0:03:54]} Nxf4 {[%emt 0:00:05]} 18. Nd6 {[%emt 0:01:37]} Ne6 {[%emt 0:08:53]} 19. Rad1 {[%emt 0:06:04]} Bb7 {[%emt 0:02:28]} 20. Nd4 {[%emt 0:04:07]} Nf4 {[%emt 0:04:26]} 21. Re4 {[%emt 0:14:28]} Bh6 {[%emt 0:01:21]} 22. Nxb7 {[%emt 0:05:44]} Rxb7 {[%emt 0:00:22]} 23. Bd2 {[%emt 0:01:06]} c5 {[%emt 0:04:30]} 24. Nb3 {[%emt 0:02:35]} g5 {[%emt 0:00:10]} 25. Bxf4 {[%emt 0:01:56]} gxf4 {[%emt 0:00:02]} 26. g3 {[%emt 0:05:14]} fxg3 {[%emt 0:03:09]} 27. hxg3 {[%emt 0:00:08]} Rf7 {[%emt 0:06:39]} 28. Re8+ {[%emt 0:02:36]} Kg7 {[%emt 0:00:14]} 29. Re2 {[%emt 0:00:51]} Rb4 {[%emt 0:01:21]} 30. Rc2 {[%emt 0:01:05]} f5 {[%emt 0:02:01]} 31. Nxc5 {[%emt 0:00:15]} f4 {[%emt 0:02:12]} 32. g4 {[%emt 0:02:01]} f3 {[%emt 0:00:16]} 33. Rxd7 {[%emt 0:00:24]} Rxd7 {[%emt 0:00:22]} 34. Nxd7 {[%emt 0:00:03]} Bf4 {[%emt 0:00:41]} 35. Nc5 {[%emt 0:00:48]} Rb6 {[%emt 0:02:50]} 36. Nd3 {[%emt 0:00:43]} Bc7 {[%emt 0:00:18]} 37. Ne1 {[%emt 0:01:58]} Rf6 {[%emt 0:00:14]} 38. Kf1 {[%emt 0:01:55]} Kg6 {[%emt 0:04:29]} 39. Rc3 {[%emt 0:01:11]} Kg5 {[%emt 0:01:25]} 40. Rxf3 {[%emt 0:00:00]} Rxf3 {[%emt 0:00:00]} 41. Nxf3+ {[%emt 0:01:20]} Kxg4 {[%emt 0:00:13]} 42. Kg2 {[%emt 0:00:20]} a5 {[%emt 0:00:26]} 43. c5 {[%emt 0:01:45]} Kf4 {[%emt 0:00:14]} (43... Kf5 $142 44. Nd4+ Kf6) 44. Nd4 $18 {[%emt 0:00:36]} Ke5 {[%emt 0:01:31]} 45. Nb5 {[%emt 0:00:07]} Bd8 {[%emt 0:00:19]} 46. c6 {[%emt 0:00:08]} 1-0

[Event "EYCC Girls U14 2018"]
[Site "Riga"]
[Date "2018.08.27"]
[Round "7"]
[White "Dylag, Emilia"]
[Black "Yakimova, Mariya"]
[Result "1/2-1/2"]
[ECO "B20"]
[WhiteElo "2095"]
[BlackElo "1875"]
[Annotator "NA"]
[PlyCount "89"]
[EventDate "2018.08.20"]
[EventType "swiss"]
[EventCountry "LAT"]
[SourceTitle "playchess.com"]
[Source "ChessBase"]
[SourceQuality "1"]
[TimeControl "40/5400+30:1800+30"]

1. e4 {[%emt 0:00:00]} c5 {[%emt 0:00:00]} 2. Ne2 {[%emt 0:00:00]} Nc6 {[%emt 0:00:00]} 3. g3 {[%emt 0:00:30]} g6 {[%emt 0:00:03]} 4. Bg2 {[%emt 0:00:35]} Bg7 {[%emt 0:00:06]} 5. c3 {[%emt 0:00:27]} e5 {[%emt 0:01:00]} 6. O-O {[%emt 0:03:02]} Nge7 {[%emt 0:00:06]} 7. d3 {[%emt 0:03:07] B20: Sicilian: Unusual White 2nd moves} d5 {[%emt 0:04:29]} 8. exd5 {[%emt 0:05:58]} (8. a4 O-O 9. Na3 Be6 10. Qc2 Qd7 11. Rd1 Bh3 12. Be3 Bxg2 13. Kxg2 b6 14. d4 cxd4 15. cxd4 dxe4 16. dxe5 {0-1 (71) Caruana,F (2816)-So,W (2778) Leuven 2018}) 8... Nxd5 {[%emt 0:00:15]} 9. Nd2 {[%emt 0:07:09]} O-O {[%emt 0:01:08]} 10. Ne4 {[%emt 0:03:42]} b6 {[%emt 0:03:16]} 11. Qc2 $146 {[%emt 0:09:07]} ({Predecessor:} 11. f4 Bg4 12. h3 Bxe2 13. Qxe2 exf4 14. gxf4 Nce7 {½-½ (39) Kholmov,R (2450)-Shmuter,L (2460) Volgograd 1994}) 11... Be6 {[%emt 0:04:27]} 12. h3 {[%emt 0:05:16]} h6 {[%emt 0:02:26]} 13. f4 {[%emt 0:04:37]} Rc8 {[%emt 0:11:37]} 14. Nf2 {[%emt 0:13:12]} Re8 {[%emt 0:10:35]} 15. Bd2 {[%emt 0:05:57]} Qd7 {[%emt 0:13:04]} 16. Rae1 {[%emt 0:05:54]} h5 {[%emt 0:01:47]} 17. a3 {[%emt 0:06:58]} h4 {[%emt 0:09:10]} 18. g4 {[%emt 0:02:26]} exf4 {[%emt 0:05:57]} 19. Nxf4 {[%emt 0:01:15]} Nxf4 {[%emt 0:00:22]} 20. Bxf4 {[%emt 0:00:17]} Bd5 {[%emt 0:01:18]} 21. Bxd5 {[%emt 0:02:01]} Qxd5 {[%emt 0:00:07]} 22. Ne4 {[%emt 0:01:09]} Ne5 {[%emt 0:01:46]} 23. Bxe5 {[%emt 0:01:58]} Rxe5 {[%emt 0:04:44]} 24. Qf2 {[%emt 0:01:36]} Rf8 {[%emt 0:06:29]} 25. Qxh4 {[%emt 0:08:31]} Qxd3 {[%emt 0:03:51]} 26. Ng5 {[%emt 0:06:51]} Rxg5 {[%emt 0:00:15]} 27. Qxg5 {[%emt 0:00:02]} Qg3+ {[%emt 0:00:13]} 28. Kh1 {[%emt 0:00:03]} Qxh3+ {[%emt 0:00:13]} 29. Kg1 {[%emt 0:00:04]} Qg3+ {[%emt 0:05:21]} 30. Kh1 {[%emt 0:00:05]} Qh3+ {[%emt 0:00:06]} 31. Kg1 {[%emt 0:00:05]} Bh6 {[%emt 0:00:12]} 32. Qe5 {[%emt 0:01:50]} Qxg4+ {[%emt 0:00:53]} 33. Kh2 {[%emt 0:00:52]} Rd8 {[%emt 0:06:34]} 34. Re2 {[%emt 0:00:53]} Bg7 {[%emt 0:01:58]} 35. Qe4 {[%emt 0:00:37]} Qh5+ {[%emt 0:00:31]} 36. Kg3 {[%emt 0:00:40]} Rd5 {[%emt 0:01:14]} 37. Rh1 $19 {[%emt 0:00:51]} (37. Qe8+ $11 Kh7 38. Rxf7 Qg5+ 39. Kf2 Rf5+ 40. Rxf5 Qxf5+ 41. Kg1) 37... Qg5+ {[%emt 0:01:20]} 38. Kh3 {[%emt 0:00:24]} c4 {[%emt 0:01:07]} 39. Re3 {[%emt 0:00:56]} Bh6 {[%emt 0:00:51]} 40. Rf3 {[%emt 0:00:00]} Re5 {[%emt 0:00:00]} 41. Qxc4 {[%emt 0:10:23]} Qh5+ {[%emt 0:22:22]} 42. Kg2 {[%emt 0:01:00]} Qg5+ {[%emt 0:00:17]} 43. Kh3 {[%emt 0:01:13]} Qh5+ {[%emt 0:04:38]} 44. Kg2 {[%emt 0:00:07]} Qg5+ {[%emt 0:00:52]} 45. Kh3 {[%emt 0:01:21]} 1/2-1/2

[Event "EYCC Girls U14 2018"]
[Site "Riga"]
[Date "2018.08.27"]
[Round "7"]
[White "Loskutova, Viktoriya"]
[Black "Lomaia, Diana"]
[Result "1-0"]
[ECO "B54"]
[WhiteElo "2088"]
[BlackElo "1851"]
[Annotator "NA"]
[PlyCount "107"]
[EventDate "2018.08.20"]
[EventType "swiss"]
[EventCountry "LAT"]
[SourceTitle "playchess.com"]
[Source "ChessBase"]
[SourceQuality "1"]
[TimeControl "40/5400+30:1800+30"]

1. e4 {[%emt 0:00:00]} c5 {[%emt 0:00:00]} 2. Nf3 {[%emt 0:00:00]} d6 {[%emt 0:00:00]} 3. d4 {[%emt 0:00:00]} cxd4 {[%emt 0:00:00]} 4. Nxd4 {[%emt 0:00:00]} Nf6 {[%emt 0:00:09]} 5. f3 {[%emt 0:00:00]} e5 {[%emt 0:01:01] LiveBook: 1098 Games} 6. Nb3 {[%emt 0:00:01]} d5 {[%emt 0:05:05]} 7. Bg5 {[%emt 0:00:34] B55: Sicilian: 2...d6 3 d4 cxd4 4 Nxd4 Nf6 5 f3} d4 {[%emt 0:03:08]} (7... Be6 8. Bxf6 gxf6 9. exd5 Qxd5 10. Qxd5 Bxd5 11. Nc3 Be6 12. Nb5 Kd8 13. O-O-O+ Kc8 14. Nc3 Nd7 15. Nd5 h5 16. Bb5 Bxd5 17. Bxd7+ Kxd7 18. Rxd5+ Ke6 19. Rhd1 h4 20. Kb1 Rg8 21. c4 Rxg2 22. Nd4+ Ke7 23. f4 Rxh2 24. Nf5+ Ke6 25. Nd4+ Ke7 26. Nf5+ Ke6 {½-½ (26) Nabaty,T (2690)-Sjugirov,S (2652) Batumi 2018}) 8. c3 {[%emt 0:00:09]} dxc3 {[%emt 0:07:41]} 9. Qxd8+ {[%emt 0:03:06]} Kxd8 {[%emt 0:00:14]} 10. Nxc3 {[%emt 0:01:41]} Bb4 $146 {[%emt 0:04:07]} ({Predecessor:} 10... Be6 11. O-O-O+ Nbd7 12. Bxf6+ gxf6 13. Nd5 Rc8+ 14. Kb1 Bxd5 15. Rxd5 {1-0 (41) Shvayger,Y (2160)-Rudakova,Z (2026) Evpatoria 2009}) 11. O-O-O+ {[%emt 0:00:10]} Bd7 {[%emt 0:11:20]} 12. Bxf6+ {[%emt 0:08:35]} gxf6 {[%emt 0:00:13]} 13. Nd5 {[%emt 0:00:04]} Be7 {[%emt 0:01:21]} 14. Na5 {[%emt 0:07:06]} b6 {[%emt 0:07:34]} 15. Nb7+ {[%emt 0:02:43]} Kc8 {[%emt 0:00:32]} 16. Nxe7+ {[%emt 0:00:07]} Kxb7 {[%emt 0:00:05]} 17. Bc4 {[%emt 0:05:15]} Re8 {[%emt 0:07:42]} 18. Bd5+ {[%emt 0:01:14]} Nc6 {[%emt 0:09:19]} 19. Nxc6 {[%emt 0:01:47]} Bxc6 {[%emt 0:01:07]} 20. Bxf7 {[%emt 0:00:06]} Re7 {[%emt 0:00:10]} 21. Bd5 {[%emt 0:11:38]} Rc8 {[%emt 0:02:40]} 22. Bxc6+ {[%emt 0:00:09]} Rxc6+ {[%emt 0:00:07]} 23. Kd2 {[%emt 0:00:09]} Rg7 {[%emt 0:01:33]} 24. g3 {[%emt 0:01:26]} Rd7+ {[%emt 0:05:08]} 25. Ke3 {[%emt 0:04:52]} Kc7 {[%emt 0:04:39]} 26. Rc1 {[%emt 0:02:18]} Rdd6 {[%emt 0:01:00]} 27. Rhd1 {[%emt 0:00:56]} Rxd1 {[%emt 0:00:38]} 28. Rxd1 {[%emt 0:00:04]} Rc2 {[%emt 0:00:10]} 29. Rd2 {[%emt 0:00:04]} Rc1 {[%emt 0:00:48]} 30. f4 {[%emt 0:17:34]} exf4+ {[%emt 0:05:53]} 31. gxf4 {[%emt 0:06:42]} Rg1 {[%emt 0:06:51]} 32. Kf2 {[%emt 0:02:55]} Rc1 {[%emt 0:00:40]} 33. Kf3 {[%emt 0:00:13]} h5 {[%emt 0:01:51]} 34. e5 {[%emt 0:01:33]} fxe5 {[%emt 0:04:28]} 35. fxe5 {[%emt 0:00:39]} Re1 {[%emt 0:01:58]} 36. Kf4 {[%emt 0:00:08]} Kc6 {[%emt 0:02:09]} 37. Kf5 {[%emt 0:00:36]} Rf1+ {[%emt 0:01:40]} 38. Ke6 {[%emt 0:00:07]} h4 {[%emt 0:00:55]} 39. Rc2+ {[%emt 0:00:35]} Kb7 {[%emt 0:00:17]} 40. Kd7 {[%emt 0:00:00]} Rd1+ {[%emt 0:00:00]} 41. Ke7 {[%emt 0:00:30]} h3 {[%emt 0:02:10]} 42. e6 {[%emt 0:00:51]} Rg1 {[%emt 0:03:13]} 43. Rc3 {[%emt 0:03:54]} Rg2 {[%emt 0:02:55]} 44. Rxh3 {[%emt 0:00:06]} Rxb2 {[%emt 0:00:09]} 45. a3 {[%emt 0:00:05]} b5 {[%emt 0:02:59]} 46. Kd8 {[%emt 0:01:21]} Rd2+ {[%emt 0:03:18]} 47. Ke8 {[%emt 0:03:27]} Rc2 {[%emt 0:15:33]} 48. e7 {[%emt 0:00:28]} Kc7 {[%emt 0:00:37]} 49. Rf3 $18 {[%emt 0:07:38]} Rxh2 {[%emt 0:05:56]} 50. Kf8 {[%emt 0:00:08]} Re2 {[%emt 0:02:58]} 51. e8=Q {[%emt 0:00:08]} Rxe8+ {[%emt 0:00:05]} 52. Kxe8 {[%emt 0:00:05]} Kc6 {[%emt 0:00:14]} 53. Rf5 {[%emt 0:00:49]} a5 {[%emt 0:00:16]} 54. Ke7 {[%emt 0:00:06] Kd5} 1-0

[Event "EYCC Girls U14 2018"]
[Site "Riga"]
[Date "2018.08.27"]
[Round "7"]
[White "Krasteva, Beloslava"]
[Black "Mihailova, Alina"]
[Result "1-0"]
[ECO "E44"]
[WhiteElo "2086"]
[BlackElo "1829"]
[Annotator "NA"]
[PlyCount "65"]
[EventDate "2018.08.20"]
[EventType "swiss"]
[EventCountry "LAT"]
[SourceTitle "playchess.com"]
[Source "ChessBase"]
[SourceQuality "1"]
[TimeControl "40/5400+30:1800+30"]

1. d4 {[%emt 0:00:00]} Nf6 {[%emt 0:00:00]} 2. c4 {[%emt 0:00:00]} e6 {[%emt 0:00:00]} 3. Nc3 {[%emt 0:00:10]} Bb4 {[%emt 0:00:00]} 4. e3 {[%emt 0:00:28]} b6 {[%emt 0:00:05]} 5. Nge2 {[%emt 0:00:58]} Bb7 {[%emt 0:01:31]} 6. a3 {[%emt 0:01:33]} Bxc3+ {[%emt 0:02:03]} 7. Nxc3 {[%emt 0:00:40]} O-O {[%emt 0:02:00]} 8. Bd3 {[%emt 0:01:39]} c5 {[%emt 0:02:07]} 9. d5 {[%emt 0:05:36]} exd5 {[%emt 0:02:44]} 10. cxd5 {[%emt 0:01:02]} d6 {[%emt 0:06:27]} 11. O-O {[%emt 0:02:13]} Nbd7 {[%emt 0:00:59]} 12. e4 {[%emt 0:02:56]} h6 {[%emt 0:01:14]} 13. f4 {[%emt 0:06:58]} a6 {[%emt 0:04:55]} 14. Qf3 {[%emt 0:04:23]} b5 {[%emt 0:06:13]} 15. b4 {[%emt 0:06:09]} Rc8 {[%emt 0:09:10]} 16. Bd2 {[%emt 0:03:33]} Nb6 {[%emt 0:12:42]} 17. Rac1 {[%emt 0:06:17]} cxb4 {[%emt 0:03:33]} ({Günstiger ist} 17... Re8 $14) 18. axb4 {[%emt 0:00:20]} Nc4 $16 {[%emt 0:00:32]} 19. Be1 {[%emt 0:03:02]} Re8 {[%emt 0:02:11]} 20. Rc2 {[%emt 0:08:18]} Nd7 {[%emt 0:10:52]} 21. g4 {[%emt 0:09:36]} Qf6 {[%emt 0:03:38]} 22. h4 {[%emt 0:05:02]} Na3 {[%emt 0:05:34]} 23. g5 {[%emt 0:08:28]} hxg5 {[%emt 0:04:52]} 24. hxg5 {[%emt 0:00:27]} Qd4+ {[%emt 0:00:28]} 25. Bf2 {[%emt 0:03:37]} Qxb4 {[%emt 0:00:08]} 26. Na2 {[%emt 0:00:32]} Qa5 {[%emt 0:08:51]} 27. Re2 {[%emt 0:01:43]} Nc4 {[%emt 0:02:13]} 28. Qh3 {[%emt 0:04:35]} Ndb6 {[%emt 0:03:08]} 29. Bd4 {[%emt 0:03:29]} Ne5 {[%emt 0:05:42]} 30. fxe5 {[%emt 0:00:33]} dxe5 {[%emt 0:00:09]} 31. Rh2 {[%emt 0:00:46]} Kf8 {[%emt 0:00:09]} 32. g6 {[%emt 0:01:16]} f6 {[%emt 0:00:20]} 33. Qh8+ {[%emt 0:00:15]} 1-0